bitfinex/quotes_ETHUSD_20260113
["timestamp","ask_amount","ask_price","bid_price","bid_amount"]
[1768266739392,0.91127675,3109.4,3108.6,3.72388672]
[1768266739621,3.21600602,3109.5,3108.4,0.92835309]
[1768266739825,3.21600602,3109.5,3108.6,0.92835309]
[1768266740647,3.21600602,3109.5,3108.7,0.92835309]
[1768266740851,6.43201204,3109.5,3108.7,0.92835309]
[1768266741011,7.34328879,3109.5,3108.7,0.92835309]
[1768266741314,0.07085118,3109.4,3108.7,0.92835309]
[1768266741514,0.741414,3109.3,3108.7,0.92835309]
[1768266742942,3.95757573,3109.3,3108.7,0.92835309]
[1768266743144,3.21616173,3109.3,3108.7,0.92935309]
[1768266743317,0.002,3109.2,3108.7,0.92935309]
[1768266751809,0.002,3109.2,3108.7,0.001]
[1768266759616,0.002,3109.2,3108.7,0.90666131]
[1768266767137,0.002,3108.9,3108.7,0.90666131]
[1768266770041,0.002,3108.9,3108.8,0.90566131]
[1768266770746,0.002,3108.9,3108.7,1.32223231]
[1768266771634,0.002,3108.9,3108.8,0.90566131]
[1768266772036,0.002,3109.2,3108.9,0.90566131]
[1768266773710,0.002,3109.2,3109.0,3.21646831]
[1768266773911,0.002,3109.2,3109.0,4.32301576]
[1768266775128,0.002,3109.2,3109.0,1.10654745]
[1768266776648,0.002,3109.2,3109.0,4.32300623]
[1768266778048,0.002,3109.2,3109.1,0.90566131]
[1768266778217,0.91267229,3109.5,3109.0,8.04969153]
[1768266778425,0.91267229,3109.5,3109.1,0.33841397]
[1768266778938,0.91267229,3109.5,3109.1,3.55473872]
[1768266779335,0.002,3109.2,3109.1,3.55473872]
[1768266779749,0.91067229,3109.4,3109.1,3.55473872]
[1768266779945,0.91067229,3109.4,3109.2,0.415571]
[1768266780161,0.002,3109.5,3109.2,3.63180352]
[1768266780374,0.98352347,3110.3,3109.5,0.90566131]
[1768266780572,4.12784046,3110.3,3109.5,0.90566131]
[1768266780776,4.88761848,3110.3,3109.5,0.90566131]
[1768266781058,1.67245031,3110.3,3109.5,0.90566131]
[1768266781562,4.88760305,3110.3,3109.5,0.90566131]
[1768266781757,0.91067229,3110.2,3109.4,3.9796853]
[1768266782051,0.91067229,3110.2,3109.5,3.21595111]
[1768266782257,4.88760305,3110.3,3109.6,0.90566131]
[1768266782461,0.52114542,3110.2,3109.6,0.90566131]
[1768266784032,0.91067229,3110.1,3109.5,3.21595111]
[1768266790472,0.95813047,3110.0,3109.3,3.21610293]
[1768266790678,0.002,3109.8,3109.3,3.46910293]
[1768266790862,0.002,3109.8,3109.3,4.26322513]
[1768266791174,0.96013047,3109.8,3109.3,4.01022513]
[1768266801801,0.96013047,3109.8,3109.3,0.7941222]
[1768266801976,0.96013047,3109.8,3109.0,7.08641481]
[1768266801977,0.96577071,3109.7,3109.0,7.08641481]
[1768266805182,0.96577071,3109.6,3109.0,7.08641481]
[1768266805507,0.96577071,3109.6,3109.0,3.21641481]
[1768266806200,0.96577071,3109.6,3108.9,3.46952495]
[1768266806400,0.96577071,3109.6,3108.9,4.60920419]
[1768266806774,0.96577071,3109.6,3108.9,4.35620419]
[1768266807763,0.96577071,3109.5,3108.9,4.35620419]
[1768266808095,0.96577071,3109.5,3108.9,1.13967924]
[1768266808279,0.96577071,3109.5,3108.8,3.46964686]
[1768266808883,0.96577071,3109.5,3108.8,3.21664686]
[1768266809692,0.96577071,3109.4,3108.8,3.21664686]
[1768266810897,0.96577071,3109.4,3108.7,6.43455742]
[1768266811418,0.96577071,3109.4,3108.7,7.41749511]
[1768266811631,0.96577071,3109.6,3108.8,0.76704951]
[1768266811913,0.96577071,3109.6,3108.8,1.7499872]
[1768266812221,0.002,3109.8,3109.3,3.7266853]
[1768266812369,0.96777071,3109.8,3109.3,3.7266853]
[1768266812564,0.96577071,3109.7,3109.1,3.7266853]
[1768266812966,4.62704324,3109.8,3109.0,4.19934868]
[1768266814203,4.62704324,3109.8,3109.0,4.20034868]
[1768266814508,0.002,3109.5,3109.0,4.20034868]
[1768266814677,0.002,3109.5,3109.1,3.21635566]
[1768266815000,0.002,3109.5,3109.0,4.20035971]
[1768266819602,0.002,3109.5,3109.0,0.001]
[1768266822091,0.92968304,3109.3,3109.0,0.001]
[1768266822790,0.92968304,3109.1,3108.7,0.001]
[1768266826308,1.35136413,3109.1,3108.7,0.001]
[1768266827036,1.35136413,3109.1,3109.0,0.001]
[1768266827320,4.56772899,3109.1,3109.0,0.001]
[1768266827728,0.92968304,3109.0,3108.7,0.001]
[1768266834025,0.92968304,3108.9,3108.7,0.001]
[1768266834226,1.3864663,3108.9,3108.7,0.001]
[1768266838636,0.92968304,3108.8,3108.7,0.001]
[1768266839640,4.14635828,3108.8,3108.7,0.001]
[1768266840443,0.92968304,3108.7,3108.3,0.00080662]
[1768266840740,0.92968304,3108.5,3108.3,0.00080662]
[1768266841119,0.41463583,3108.6,3108.3,0.00080662]
[1768266841826,1.34431887,3108.6,3108.3,0.00080662]
[1768266843927,0.41463583,3108.6,3108.3,0.00080662]
[1768266850018,0.98958816,3108.7,3108.6,0.001]
[1768266850219,3.67339482,3108.9,3108.6,0.001]
[1768266850220,1.44637142,3108.9,3108.6,0.001]
[1768266853159,4.66294561,3108.9,3108.6,0.001]
[1768266855422,1.44637142,3108.9,3108.6,0.001]
[1768266855723,0.46628842,3108.8,3108.6,0.001]
[1768266857423,0.5371396,3108.8,3108.6,0.001]
[1768266858280,0.46628842,3108.8,3108.6,0.001]
[1768266864484,0.42168109,3109.1,3108.6,0.001]
[1768266864870,3.63807594,3109.1,3108.6,0.001]
[1768266869471,0.97480324,3109.0,3108.6,0.001]
[1768266870717,4.19131491,3109.0,3108.6,0.001]
[1768266870997,1.44318796,3108.9,3108.6,0.001]
[1768266871217,0.97480324,3108.8,3108.6,0.001]
[1768266886126,0.9583089,3108.6,3108.1,0.00083968]
[1768266886333,0.9583089,3108.4,3108.1,0.00083968]
[1768266886949,0.253,3108.7,3108.2,0.91730003]
[1768266887225,3.68501284,3108.9,3108.3,4.17298799]
[1768266887226,0.9583089,3108.9,3108.3,4.17298799]
[1768266887403,0.9583089,3108.9,3108.3,0.41355047]
[1768266887587,0.9583089,3108.9,3108.1,3.21820465]
[1768266887793,0.9583089,3108.8,3108.1,3.21820465]
[1768266890031,4.17484921,3109.0,3108.2,4.64456563]
[1768266890223,0.9583089,3108.9,3108.2,3.7272656]
[1768266890402,0.9583089,3108.9,3108.3,0.69454703]
[1768266890601,0.9583089,3108.9,3108.1,3.21820465]
[1768266890940,1.02916008,3108.9,3108.1,0.00083968]
[1768266891451,0.9583089,3108.6,3108.1,0.00083968]
[1768266893820,0.9583089,3109.0,3108.5,3.7272656]
[1768266894143,0.9583089,3109.0,3108.3,4.64456563]
[1768266894312,0.9583089,3109.0,3108.4,0.46445656]
[1768266895444,0.9583089,3109.0,3108.4,0.46545656]
[1768266895932,0.9583089,3109.0,3108.4,0.001]
[1768266896121,4.17477779,3109.0,3108.4,0.001]
[1768266897653,0.9583089,3109.0,3108.4,0.001]
[1768266898646,4.17478763,3109.0,3108.4,0.001]
[1768266899033,0.9583089,3108.9,3108.4,0.001]
[1768266900159,1.02916008,3108.9,3108.4,0.001]
[1768266900648,0.9583089,3108.5,3108.1,0.00083968]
[1768266900941,0.9583089,3108.4,3108.1,0.00083968]
[1768266902743,0.9583089,3108.3,3108.1,0.00083968]
[1768266903151,1.02916008,3108.2,3107.8,0.00080572]
[1768266903444,1.02916008,3108.0,3107.6,0.001]
[1768266903609,1.02916008,3108.0,3107.6,8.64e-06]
[1768266905538,4.24668284,3108.0,3107.6,8.64e-06]
[1768266906353,0.9184074,3107.9,3107.6,8.64e-06]
[1768266907251,1.11906071,3108.2,3107.6,8.64e-06]
[1768266907458,4.13560986,3108.3,3107.6,8.64e-06]
[1768266908526,4.20646104,3108.3,3107.6,8.64e-06]
[1768266908852,0.9184074,3108.2,3107.6,8.64e-06]
[1768266911034,4.1357584,3108.2,3107.6,8.64e-06]
[1768266911437,0.9184074,3108.1,3107.6,8.64e-06]
[1768266911660,1.33906836,3108.1,3107.6,8.64e-06]
[1768266913057,4.55646903,3108.1,3107.6,8.64e-06]
[1768266913860,1.33906836,3108.1,3107.6,8.64e-06]
[1768266914358,4.55648536,3108.1,3107.6,8.64e-06]
[1768266915167,0.97286398,3108.0,3107.6,8.64e-06]
[1768266915467,0.97286398,3107.8,3107.6,8.64e-06]
[1768266918547,0.002,3107.7,3107.6,8.64e-06]
[1768266929083,0.97486398,3107.7,3107.6,8.64e-06]
[1768266930481,0.002,3107.7,3107.6,8.64e-06]
[1768266931465,0.97486398,3107.7,3107.6,8.64e-06]
[1768266933556,0.97286398,3107.6,3107.3,0.00080555]
[1768266933892,10.16489322,3107.7,3107.3,0.00080555]
[1768266933893,0.97286398,3107.4,3107.3,0.00080555]
[1768266934261,7.01793059,3107.7,3107.3,0.00080555]
[1768266934457,0.97286398,3107.6,3107.3,0.00080555]
[1768266934657,0.97286398,3107.6,3106.8,3.07508858]
[1768266934895,0.97286398,3107.6,3106.8,3.99818028]
[1768266935097,0.97286398,3107.6,3106.9,3.21862297]
[1768266936038,4.19083998,3107.6,3106.8,4.39480476]
[1768266936232,4.19083998,3107.6,3106.6,0.9240917]
[1768266936233,0.94484536,3107.4,3106.6,0.9240917]
[1768266936448,3.7272656,3107.5,3106.6,0.001]
[1768266936449,0.94484536,3107.0,3106.6,0.001]
[1768266937431,0.94484536,3107.2,3106.6,0.001]
[1768266938332,4.16328055,3107.1,3106.6,0.001]
[1768266938533,0.94484536,3107.0,3106.6,0.001]
[1768266940549,3.21837492,3107.2,3106.6,0.001]
[1768266940550,4.16322028,3107.2,3106.6,0.001]
[1768266940720,0.94484536,3107.1,3106.6,0.001]
[1768266941323,0.74522157,3107.2,3106.6,0.001]
[1768266941518,0.94484536,3107.3,3106.6,0.001]
[1768266942383,0.60238981,3107.6,3106.6,0.9240917]
[1768266942654,0.002,3107.3,3107.0,0.9230917]
[1768266943727,0.00074011,3107.3,3107.0,0.9230917]
[1768266944321,0.002,3107.6,3107.0,0.9230917]
[1768266944523,0.002,3107.6,3107.2,4.14142331]
[1768266948247,0.002,3107.6,3107.3,0.9230917]
[1768266950261,0.002,3107.6,3107.3,4.14131745]
[1768266951865,0.002,3107.6,3107.3,0.9230917]
[1768266954161,0.002,3107.6,3107.1,3.21840863]
[1768266954472,0.94684536,3107.6,3107.0,3.21849578]
[1768266954773,0.94684536,3107.6,3106.9,0.001]
[1768266955367,0.002,3107.3,3106.9,0.001]
[1768266955568,0.94684536,3107.3,3106.9,0.001]
[1768266956153,0.94484536,3107.2,3106.9,0.001]
[1768266956348,0.94484536,3107.1,3106.9,0.001]
[1768266960472,0.94484536,3107.0,3106.9,0.001]
[1768266969892,0.73833093,3107.2,3106.9,0.001]
[1768266970089,0.002,3107.3,3106.9,0.001]
[1768266972095,0.002,3107.3,3106.9,0.94154978]
[1768266972475,0.002,3107.6,3107.1,0.94054978]
[1768266973320,0.002,3107.6,3107.1,4.1589147]
[1768266974213,0.002,3107.6,3107.2,0.93474604]
[1768266974818,0.90688699,3107.6,3106.9,0.001]
[1768266975004,0.90688699,3107.6,3106.9,3.21960337]
[1768266975617,0.90488699,3107.5,3106.9,3.21960337]
[1768266976530,0.90488699,3107.5,3106.9,0.001]
[1768266977583,0.002,3107.6,3106.9,0.93574604]
[1768266977823,0.002,3107.6,3107.0,4.15328482]
[1768266978608,0.002,3107.6,3107.2,0.001]
[1768266987484,0.002,3107.6,3107.2,0.93574604]
[1768266989731,0.002,3107.6,3107.2,4.15406909]
[1768266990235,3.21730585,3108.2,3107.4,0.93474604]
[1768266990236,0.90488699,3108.2,3107.4,0.93474604]
[1768266990420,0.253,3108.3,3107.5,0.93474604]
[1768266990809,0.253,3108.3,3107.6,3.21791736]
[1768266991230,4.37511056,3108.3,3107.6,3.21791736]
[1768266991429,5.14148874,3108.3,3107.5,4.15271897]
[1768266992367,0.253,3108.3,3107.6,0.93474604]
[1768266993066,0.253,3108.3,3107.6,4.15256759]
[1768266993364,4.12282801,3108.4,3107.6,4.15256759]
[1768266993365,1.15869312,3108.4,3107.6,4.15256759]
[1768266993574,0.00080613,3108.4,3107.8,0.93474604]
[1768266993868,0.00080613,3108.4,3108.0,0.93474604]
[1768266994320,0.90570199,3108.7,3108.3,0.93474604]
[1768266994321,0.000815,3108.7,3108.3,0.93474604]
[1768266994517,0.00280555,3108.9,3108.2,3.7320245]
[1768266994518,0.00280555,3108.9,3108.4,0.93474604]
[1768266994980,0.00280555,3108.9,3108.4,4.15181993]
[1768266995657,0.96081075,3108.8,3108.4,3.21707389]
[1768266996157,0.00280555,3108.9,3108.3,3.21719267]
[1768266996359,0.00280555,3108.9,3108.3,4.19863471]
[1768266997669,0.00280555,3108.9,3108.4,0.98144204]
[1768266998563,0.00280555,3108.9,3108.4,4.19848703]
[1768266999570,0.00280555,3108.9,3108.4,0.98144204]
[1768267000667,0.00280555,3108.9,3108.4,4.19851578]
[1768267001771,0.00280555,3108.9,3108.7,0.001]
[1768267004067,0.96081075,3108.8,3108.7,0.001]
[1768267004269,1.03166193,3108.8,3108.0,0.253]
[1768267004565,0.96081075,3108.6,3108.0,3.21749493]
[1768267005171,0.96081075,3108.6,3107.9,3.21760364]
[1768267005352,0.96081075,3108.6,3108.0,3.21744777]
[1768267006673,0.25580555,3108.9,3108.2,0.98144204]
[1768267007745,4.43319648,3108.9,3108.1,3.72702561]
[1768267007977,1.2166163,3108.9,3108.1,3.72702561]
[1768267008174,1.2166163,3108.9,3108.2,1.013615]
[1768267008376,0.25580555,3108.9,3108.2,1.013615]
[1768267008548,0.25580555,3108.9,3108.3,4.19863471]
[1768267009281,0.00280555,3108.9,3108.3,4.19863471]
[1768267013702,0.00280555,3108.9,3108.6,0.001]
[1768267017604,0.00280555,3108.9,3108.6,0.98244204]
[1768267023489,0.00280555,3108.9,3108.7,0.98144204]
[1768267023787,0.00280555,3108.9,3108.6,1.40238143]
[1768267025403,0.00280555,3108.9,3108.6,0.42093939]
[1768267025602,0.00280555,3108.9,3108.6,0.94624816]
[1768267028971,0.00280555,3108.9,3108.6,4.16312615]
[1768267029173,0.00280555,3108.9,3108.7,0.94524816]
[1768267033508,0.00280555,3108.9,3108.6,0.001]
[1768267035083,1.00165053,3109.3,3108.6,3.21788219]
[1768267035299,1.00165053,3109.3,3108.7,0.7377104]
[1768267038111,1.00165053,3109.3,3108.8,3.21667524]
[1768267040108,1.00165053,3109.3,3108.7,0.7377104]
[1768267040311,0.99965053,3109.2,3108.6,0.001]
[1768267041478,0.99965053,3109.2,3108.6,3.21785746]
[1768267042412,0.99965053,3109.2,3108.6,0.001]
[1768267042708,0.99965053,3109.0,3108.6,0.001]
[1768267043504,0.99965053,3108.8,3108.6,0.001]
[1768267044121,0.99965053,3108.6,3108.1,4.0]
[1768267044280,0.99965053,3108.6,3107.9,0.253]
[1768267044610,0.99965053,3108.6,3107.9,0.25200001]
[1768267045612,0.99965053,3108.6,3107.6,6.43583472]
[1768267045814,0.99965053,3108.6,3107.7,0.253]
[1768267046513,0.99965053,3108.5,3107.7,0.253]
[1768267046878,0.99965053,3108.5,3107.7,3.98002561]
[1768267047081,0.99965053,3108.7,3107.9,3.72702561]
[1768267047562,0.99965053,3108.7,3108.1,3.72702561]
[1768267047690,0.99965053,3108.9,3108.3,3.72702561]
[1768267048078,0.99965053,3108.9,3108.4,0.03217089]
[1768267048682,0.002,3109.0,3108.5,4.66926948]
[1768267048882,0.002,3109.0,3108.6,0.03216882]
[1768267049384,0.002,3109.0,3108.6,0.97441269]
[1768267050716,0.002,3109.0,3108.7,0.94224387]
[1768267051505,0.002,3109.0,3108.7,4.92226948]
[1768267051701,0.002,3109.3,3109.0,0.94224387]
[1768267052022,0.002,3109.5,3109.1,4.66926948]
[1768267052534,0.002,3109.5,3108.9,3.72702561]
[1768267052715,0.002,3109.5,3108.9,4.66926948]
[1768267053232,1.00165053,3109.5,3108.7,5.29459959]
[1768267053527,0.99965053,3109.4,3108.8,0.253]
[1768267053710,0.99965053,3109.4,3108.7,3.21676346]
[1768267053915,0.99965053,3109.4,3108.8,0.253]
[1768267054830,4.21572036,3109.4,3108.8,0.253]
[1768267055055,0.97226127,3109.3,3108.6,0.94224387]
[1768267055239,0.97226127,3109.3,3108.8,0.253]
[1768267055934,0.97226127,3109.3,3108.7,0.253]
[1768267056522,0.97226127,3109.2,3108.6,3.21685397]
[1768267056707,0.97226127,3109.2,3108.6,3.46985397]
[1768267057317,3.21795377,3109.5,3108.6,3.46985397]
[1768267057318,0.97226127,3109.4,3108.7,3.21676886]
[1768267057634,0.97226127,3109.4,3108.8,3.21667251]
[1768267059541,0.97226127,3109.4,3109.1,0.001]
[1768267059742,0.41902176,3109.3,3109.1,0.001]
[1768267060244,1.39128303,3109.3,3109.1,0.001]
[1768267061239,0.97226127,3109.2,3109.1,0.001]
[1768267061740,1.39128303,3109.3,3109.1,0.001]
[1768267064042,0.97226127,3109.2,3109.1,0.001]
[1768267064211,0.41902176,3109.3,3109.1,0.001]
[1768267064843,1.39128303,3109.3,3109.1,0.001]
[1768267065845,0.41902176,3109.3,3109.1,0.001]
[1768267070329,0.97226127,3109.3,3109.1,0.001]
[1768267076069,4.18846421,3109.3,3109.1,0.001]
[1768267076370,1.04311245,3109.2,3107.6,0.97946364]
[1768267076661,0.97226127,3108.5,3107.8,4.00080613]
[1768267076870,0.97226127,3108.5,3107.8,0.00080613]
[1768267078128,0.97226127,3108.5,3107.8,3.21851523]
[1768267078564,3.21688772,3108.6,3107.9,0.97946364]
[1768267079170,4.18908427,3108.7,3107.9,0.97946364]
[1768267081434,4.93674574,3108.7,3107.9,0.97946364]
[1768267081640,0.97226127,3108.6,3107.9,0.97946364]
[1768267082270,0.97226127,3108.6,3108.1,0.001]
[1768267082766,4.18917189,3108.6,3108.1,0.001]
[1768267083472,0.97226127,3108.5,3108.1,0.001]
[1768267083677,1.78763567,3108.5,3108.1,0.001]
[1768267085178,5.00470939,3108.5,3108.1,0.001]
[1768267088874,0.93141994,3108.4,3108.1,0.001]
[1768267090381,0.93141994,3108.3,3108.1,0.001]
[1768267090601,0.93141994,3108.3,3107.2,0.001]
[1768267090602,0.93141994,3108.1,3107.4,0.253]
[1768267090894,6.50506492,3108.4,3107.5,0.96460161]
[1768267090895,0.40324813,3108.3,3107.5,0.96460161]
[1768267091079,3.21729618,3108.2,3107.5,4.18260257]
[1768267091380,4.14871612,3108.2,3107.5,0.96460161]
[1768267093081,0.93141994,3108.1,3107.4,0.253]
[1768267093380,0.93225039,3108.0,3107.3,3.21899311]
[1768267093581,0.93225039,3108.0,3107.3,0.00080596]
[1768267093882,0.93225039,3108.0,3107.8,0.001]
[1768267094089,0.93225039,3108.0,3107.3,0.00080596]
[1768267094300,0.93225039,3108.0,3107.2,3.47233147]
[1768267094582,0.93225039,3107.9,3107.2,3.47233147]
[1768267094887,0.93225039,3107.9,3107.2,0.254]
[1768267095387,0.93225039,3107.8,3107.2,0.254]
[1768267095985,3.21764121,3107.9,3107.2,4.39382674]
[1768267096847,0.93225039,3107.8,3107.2,0.001]
[1768267097055,0.93225039,3107.7,3107.2,0.001]
[1768267097567,0.93225039,3107.5,3106.9,0.001]
[1768267098080,1.00310157,3107.5,3106.9,0.001]
[1768267099583,1.00310157,3107.5,3106.6,0.001]
[1768267099584,0.93225039,3107.2,3106.6,0.001]
[1768267099884,0.93225039,3107.0,3106.5,0.00081349]
[1768267101153,0.93225039,3106.9,3106.5,0.00081349]
[1768267101594,7.36974233,3106.8,3106.5,0.00081349]
[1768267101896,4.15099636,3106.8,3106.5,0.00081349]
[1768267104606,0.93225039,3106.7,3106.0,0.9215248]
[1768267104775,0.93225039,3106.7,3105.9,0.00081188]
[1768267105172,0.93225039,3106.5,3105.9,0.00081188]
[1768267106716,0.93225039,3106.3,3105.9,0.00081188]
[1768267108690,0.93225039,3106.1,3105.9,0.00081188]
[1768267109376,1.67642457,3106.1,3105.9,0.00081188]
[1768267109819,0.93225039,3106.0,3105.9,0.00081188]
[1768267110321,0.93225039,3106.0,3105.5,0.0008058]
[1768267110682,3.21967867,3105.9,3105.5,0.0008058]
[1768267111014,4.15192906,3105.9,3105.5,0.0008058]
[1768267111178,4.96350679,3105.9,3105.5,0.0008058]
[1768267111382,0.93225039,3105.8,3105.3,0.00263948]
[1768267113015,0.93225039,3105.6,3105.3,0.00263948]
[1768267113695,0.93225039,3105.6,3105.0,0.00080555]
[1768267114795,0.81157773,3105.9,3105.1,0.98115579]
[1768267115138,0.91801369,3105.9,3105.1,0.98115579]
[1768267116648,0.91801369,3105.9,3105.0,0.00080555]
[1768267117141,0.91801369,3105.7,3105.0,0.00080555]
[1768267117484,0.98886487,3105.7,3105.0,0.00080555]
[1768267117703,0.98886487,3105.7,3105.4,0.001]
[1768267117916,0.91801369,3105.5,3105.0,0.00080555]
[1768267119720,4.13813346,3105.5,3105.0,0.00080555]
[1768267120222,0.91801369,3105.5,3105.0,0.00080555]
[1768267121926,0.07085118,3105.9,3105.0,0.00080555]
[1768267121927,1.24186487,3106.1,3105.0,0.98196134]
[1768267122123,4.63440641,3106.0,3105.0,0.98196134]
[1768267122534,0.91801369,3105.9,3105.0,0.98196134]
[1768267123229,0.49681771,3106.0,3105.1,0.98115579]
[1768267123526,4.1373814,3106.2,3105.4,0.98115579]
[1768267123732,1.36413695,3106.1,3105.2,0.98115579]
[1768267124029,0.91801369,3106.0,3105.2,0.98115579]
[1768267125527,4.58370588,3106.1,3105.3,0.98115579]
[1768267126702,0.91801369,3106.0,3105.3,0.98115579]
[1768267126899,0.91801369,3105.9,3105.0,3.22140485]
[1768267127124,0.91801369,3105.7,3105.0,0.00080555]
[1768267127325,0.91801369,3105.5,3105.0,0.00080555]
[1768267129430,0.91801369,3105.5,3105.4,0.001]
[1768267129606,4.13793064,3105.7,3105.4,0.001]
[1768267129933,0.812481,3105.6,3105.4,0.001]
[1768267130177,3.4748026,3105.8,3105.4,0.001]
[1768267130311,0.91801369,3105.7,3105.4,0.001]
[1768267132143,0.002,3105.8,3105.4,0.001]
[1768267133447,0.002,3105.8,3105.4,0.98215579]
[1768267133448,3.22178576,3105.8,3105.4,0.98215579]
[1768267133647,3.22178576,3105.8,3105.4,0.001]
[1768267134020,0.002,3105.8,3105.4,0.001]
[1768267134638,0.92001369,3105.8,3105.4,0.001]
[1768267134852,0.91801369,3105.7,3105.4,0.001]
[1768267135525,0.91801369,3105.5,3105.4,0.001]
[1768267136858,0.91801369,3105.7,3105.4,0.001]
[1768267138664,4.13791248,3105.7,3105.4,0.001]
[1768267138871,0.49011407,3105.6,3105.4,0.001]
[1768267140259,4.1379329,3105.7,3105.4,0.001]
[1768267141266,0.91801369,3105.7,3105.4,0.001]
[1768267141465,4.13791786,3105.7,3105.4,0.001]
[1768267141971,0.002,3105.5,3105.4,0.001]
[1768267146444,0.93268792,3105.5,3105.4,0.001]
[1768267147144,0.002,3105.5,3105.4,0.001]
[1768267155071,0.002,3105.5,3105.4,0.94247577]
[1768267158672,0.002,3105.5,3105.4,4.16267284]
[1768267158876,0.002,3105.5,3105.4,4.90097911]
[1768267159680,0.002,3105.8,3105.4,3.95950334]
[1768267159882,0.002,3105.8,3105.4,4.90097911]
[1768267160087,0.002,3105.8,3105.5,0.94147577]
[1768267161882,0.002,3105.8,3105.5,4.1615516]
[1768267162081,0.002,3105.8,3105.5,1.67975935]
[1768267166361,0.002,3105.8,3105.6,0.94147577]
[1768267167889,0.002,3105.8,3105.7,3.21988601]
[1768267168191,0.002,3105.8,3105.7,4.16136178]
[1768267168395,0.002,3106.1,3105.7,6.43977202]
[1768267168594,0.002,3106.1,3105.8,0.94147577]
[1768267168890,0.002,3106.7,3106.0,4.67535514]
[1768267169057,0.002,3106.7,3106.0,3.73387937]
[1768267169058,0.9842249,3106.7,3106.0,3.73387937]
[1768267169384,0.002,3106.7,3106.1,0.94147577]
[1768267170488,0.002,3106.7,3106.2,3.21936771]
[1768267170694,0.002,3106.7,3106.2,0.94147577]
[1768267171162,0.9822249,3106.4,3105.4,0.001]
[1768267171367,0.9822249,3106.0,3105.4,4.001]
[1768267171676,0.9822249,3106.0,3105.4,0.001]
[1768267172265,0.9822249,3106.0,3105.4,3.2211919]
[1768267177197,0.002,3105.7,3105.4,3.2211919]
[1768267177391,0.002,3105.7,3105.4,3.89064986]
[1768267178101,0.002,3105.7,3105.4,0.67045796]
[1768267178288,0.002,3105.7,3105.4,0.001]
[1768267179205,0.98419141,3105.7,3105.4,0.001]
[1768267179403,0.98419141,3105.7,3105.5,3.73387937]
[1768267179404,0.002,3105.7,3105.5,3.73387937]
[1768267179704,0.002,3106.0,3105.6,0.03219989]
[1768267180707,0.002,3106.0,3105.6,3.25214003]
[1768267181309,0.002,3106.0,3105.6,7.58786508]
[1768267181472,0.002,3106.0,3105.7,3.73387937]
[1768267181673,0.002,3106.0,3105.7,4.68406333]
[1768267182005,0.002,3106.0,3105.8,0.03219782]
[1768267182207,0.002,3106.0,3105.7,4.68406333]
[1768267182390,0.002,3106.0,3105.7,5.42886039]
[1768267182749,0.98219141,3106.5,3106.0,3.21957501]
[1768267182874,0.253,3106.8,3106.0,3.21957501]
[1768267182875,0.98419141,3106.7,3106.0,3.21957501]
[1768267188399,0.98219141,3106.6,3105.9,4.16981613]
[1768267190191,0.002,3106.4,3105.9,4.16981613]
[1768267190385,0.002,3106.4,3105.9,4.98335481]
[1768267191224,0.002,3106.4,3105.8,3.21973746]
[1768267191588,0.98419141,3106.4,3105.8,3.21973746]
[1768267192624,0.98419141,3106.4,3105.8,3.21978234]
[1768267196223,0.002,3106.4,3105.8,7.38974864]
[1768267199092,0.002,3106.4,3105.9,0.03219678]
[1768267199292,0.002,3106.4,3105.9,0.77449132]
[1768267199493,0.002,3106.4,3106.0,3.21957501]
[1768267199917,0.002,3106.4,3105.9,3.96192451]
[1768267201830,0.002,3106.1,3105.9,3.96192451]
[1768267202832,0.002,3106.1,3105.9,7.18160318]
[1768267203036,0.002,3106.1,3106.0,0.81317871]
[1768267204428,0.002,3106.1,3106.0,4.06494947]
[1768267204932,0.002,3106.1,3106.0,4.03275372]
[1768267208112,0.002,3106.1,3106.0,3.21957501]
[1768267208998,0.002,3106.1,3105.9,3.21967831]
[1768267210134,0.002,3106.1,3105.9,6.43935698]
[1768267210923,0.002,3106.1,3105.9,3.21967831]
[1768267213426,0.002,3106.1,3105.7,6.44074049]
[1768267213626,0.002,3106.1,3105.8,1.15544935]
[1768267214637,0.002,3106.1,3105.9,3.21967867]
[1768267230147,0.002,3106.1,3105.9,6.43935734]
[1768267230450,0.002,3106.7,3106.0,0.97797217]
[1768267230634,0.002,3106.7,3106.1,1.40095693]
[1768267231350,0.002,3106.7,3106.1,0.42298476]
[1768267231510,0.96341691,3106.7,3106.1,0.67598476]
[1768267232452,0.96341691,3106.7,3106.2,3.21936771]
[1768267235266,0.96341691,3106.7,3106.1,3.89541224]
[1768267236459,0.96341691,3106.7,3106.2,0.71149762]
[1768267237106,0.96341691,3106.7,3106.2,3.93083505]
[1768267237704,0.002,3106.4,3106.2,3.93083505]
[1768267238202,0.002,3106.4,3106.2,0.71149762]
[1768267238371,0.002,3106.4,3106.2,3.93083122]
[1768267238563,0.002,3106.4,3106.3,0.41838312]
[1768267239376,0.002,3106.4,3106.3,3.63764719]
[1768267247048,0.002,3106.7,3106.4,0.97893391]
[1768267247346,0.0028058,3107.1,3106.7,4.71105058]
[1768267247653,0.0028058,3107.1,3106.8,0.47110506]
[1768267248505,0.0028058,3107.1,3106.9,3.21864237]
[1768267250851,0.0028058,3107.1,3106.9,4.19757628]
[1768267251206,0.0028058,3107.1,3107.0,0.97893391]
[1768267251410,0.00081188,3107.5,3107.0,0.97893391]
[1768267251721,0.00081188,3107.5,3107.0,0.78873237]
[1768267253236,0.00081188,3107.5,3107.1,3.21843519]
[1768267254216,0.00081188,3107.5,3107.1,7.41580429]
[1768267257060,0.96159477,3107.4,3106.8,3.68977089]
[1768267257261,0.95959477,3107.1,3106.6,0.03218953]
[1768267257417,0.95959477,3106.9,3106.7,4.0]
[1768267257621,0.95959477,3106.9,3106.4,0.001]
[1768267261691,0.95959477,3106.8,3106.4,0.001]
[1768267261976,0.95959477,3106.8,3106.7,0.001]
[1768267264049,0.41781666,3106.8,3106.7,0.001]
[1768267264671,1.34865093,3106.8,3106.7,0.001]
[1768267268596,0.93083427,3106.8,3106.7,0.001]
[1768267269096,0.93083427,3107.0,3106.7,0.001]
[1768267269292,3.21831316,3107.3,3106.7,0.001]
[1768267269508,0.93283427,3107.4,3106.7,0.001]
[1768267269864,0.002,3107.4,3107.0,4.69654287]
[1768267270275,0.002,3107.4,3107.0,0.9644262]
[1768267270564,0.93083427,3107.3,3106.7,0.001]